[Event "CZE-ch U14 Girls 2020"]
[Site "Kouty nad Desnou"]
[Date "2020.03.07"]
[Round "1.1"]
[White "Vaclavik, Jan"]
[Black "Stalmach, Richard"]
[Result "0-1"]
[ECO "A00"]
[WhiteElo "1791"]
[BlackElo "2259"]
[Annotator "ChessBase"]
[PlyCount "54"]
[EventDate "2020.03.07"]
[EventCountry "CZE"]
[SourceTitle "playchess.com"]
[Source "ChessBase"]
[SourceQuality "1"]
[TimeControl "5400+30"]

1. g3 {[%emt 0:00:00]} Nf6 {[%emt 0:00:00]} 2. Bg2 {[%emt 0:00:00]} g6 {[%emt 0:00:00]} 3. b3 {[%emt 0:00:00]} Bg7 {[%emt 0:00:00]} 4. Bb2 {[%emt 0:00:03]} c5 {[%emt 0:00:12]} 5. c4 {[%emt 0:04:36]} d6 {[%emt 0:00:27]} 6. Nf3 {[%emt 0:00:41]} e5 {[%emt 0:00:31]} 7. Nc3 {[%emt 0:01:42]} O-O {[%emt 0:00:15]} 8. O-O {[%emt 0:01:49]} Nc6 {[%emt 0:00:29]} 9. d3 {[%emt 0:07:55]} Rb8 {[%emt 0:02:25]} 10. Ne1 {[%emt 0:15:10]} Nh5 {[%emt 0:04:59]} 11. Nc2 {[%emt 0:11:01]} f5 {[%emt 0:02:53]} 12. Ne3 {[%emt 0:02:41]} f4 {[%emt 0:18:14]} 13. Ned5 {[%emt 0:02:18]} g5 {[%emt 0:01:39]} 14. a3 {[%emt 0:11:21]} g4 {[%emt 0:11:04]} 15. b4 {[%emt 0:12:47]} Nd4 {[%emt 0:04:25]} 16. Be4 {[%emt 0:10:52]} f3 {[%emt 0:09:44]} 17. e3 {[%emt 0:04:40]} Ne6 {[%emt 0:04:42]} 18. Qb3 {[%emt 0:01:41]} Qg5 {[%emt 0:01:08]} 19. Nb5 {[%emt 0:04:30]} Qh6 {[%emt 0:03:44]} 20. Kh1 {[%emt 0:04:51]} Nf6 {[%emt 0:03:01]} 21. Nxd6 {[%emt 0:01:11]} Qh3 {[%emt 0:00:55]} 22. Rg1 {[%emt 0:00:19]} Nxd5 {[%emt 0:00:13]} 23. cxd5 {[%emt 0:00:43]} Rf6 {[%emt 0:00:10]} 24. Nf5 {[%emt 0:00:28]} Nd4 {[%emt 0:00:31]} 25. exd4 {[%emt 0:00:39]} Bxf5 {[%emt 0:00:07]} 26. Bxf5 {[%emt 0:00:20]} Qxh2+ {[%emt 0:00:07]} 27. Kxh2 {[%emt 0:00:01]} Rh6# 0-1

[Event "CZE-ch U14 Girls 2020"]
[Site "Kouty nad Desnou"]
[Date "2020.03.07"]
[Round "1.2"]
[White "Hrbek, Stepan"]
[Black "Lang, Simon"]
[Result "1-0"]
[ECO "A06"]
[WhiteElo "2142"]
[BlackElo "1779"]
[Annotator "ChessBase"]
[PlyCount "39"]
[EventDate "2020.03.07"]
[EventCountry "CZE"]
[SourceTitle "playchess.com"]
[Source "ChessBase"]
[SourceQuality "1"]
[TimeControl "5400+30"]

1. Nf3 {[%emt 0:00:05]} d5 {[%emt 0:00:18]} 2. e3 {[%emt 0:00:12]} e6 {[%emt 0:01:11]} 3. c4 {[%emt 0:00:50]} c5 {[%emt 0:01:10]} 4. d4 {[%emt 0:00:55]} Nc6 {[%emt 0:01:18]} 5. a3 {[%emt 0:02:04]} Nf6 {[%emt 0:02:40]} 6. dxc5 {[%emt 0:00:06]} Bxc5 {[%emt 0:00:54]} 7. b4 {[%emt 0:00:12]} Bb6 {[%emt 0:03:22]} 8. Bb2 {[%emt 0:09:44]} O-O {[%emt 0:05:54]} 9. Nbd2 {[%emt 0:07:48]} Qe7 {[%emt 0:09:18]} 10. Be2 {[%emt 0:15:47]} Bd7 {[%emt 0:17:31]} 11. O-O {[%emt 0:00:41]} Rfd8 {[%emt 0:01:22]} 12. Qb3 {[%emt 0:16:39]} Rac8 {[%emt 0:11:04]} 13. Rfd1 {[%emt 0:07:22]} Be8 {[%emt 0:03:46]} 14. Rac1 {[%emt 0:06:18]} Bc7 {[%emt 0:04:57]} 15. cxd5 {[%emt 0:06:08]} Rxd5 {[%emt 0:10:08]} 16. e4 {[%emt 0:04:14]} Rh5 {[%emt 0:02:46]} 17. e5 {[%emt 0:03:57]} Ng4 {[%emt 0:06:18]} 18. Nc4 {[%emt 0:00:53]} Rh6 {[%emt 0:11:16]} 19. h3 {[%emt 0:02:02]} b5 {[%emt 0:02:06]} 20. Nd6 1-0

[Event "CZE-ch U14 Girls 2020"]
[Site "Kouty nad Desnou"]
[Date "2020.03.07"]
[Round "1.3"]
[White "Stocek, Martin"]
[Black "Hak, David"]
[Result "0-1"]
[ECO "E92"]
[WhiteElo "1772"]
[BlackElo "2120"]
[Annotator "ChessBase"]
[PlyCount "134"]
[EventDate "2020.03.07"]
[EventCountry "CZE"]
[SourceTitle "playchess.com"]
[Source "ChessBase"]
[SourceQuality "1"]
[TimeControl "5400+30"]

1. d4 {[%emt 0:00:00]} Nf6 {[%emt 0:00:00]} 2. Nf3 {[%emt 0:00:00]} g6 {[%emt 0:00:00]} 3. c4 {[%emt 0:00:09]} Bg7 {[%emt 0:00:00]} 4. Nc3 {[%emt 0:00:07]} d6 {[%emt 0:00:21]} 5. e4 {[%emt 0:01:40]} O-O {[%emt 0:00:14]} 6. Be2 {[%emt 0:00:23]} e5 {[%emt 0:00:40]} 7. dxe5 {[%emt 0:03:44]} dxe5 {[%emt 0:00:10]} 8. O-O {[%emt 0:02:17]} Nbd7 {[%emt 0:02:15]} 9. Bg5 {[%emt 0:07:16]} c6 {[%emt 0:05:46]} 10. Qd6 {[%emt 0:11:46]} Qb6 {[%emt 0:10:11]} 11. Rab1 {[%emt 0:11:34]} Ne8 {[%emt 0:10:40]} 12. Qd2 {[%emt 0:02:35]} f6 {[%emt 0:08:56]} 13. Be3 {[%emt 0:02:58]} Qd8 {[%emt 0:06:39]} 14. b4 {[%emt 0:05:30]} Nc7 {[%emt 0:02:48]} 15. b5 {[%emt 0:07:50]} Qe7 {[%emt 0:04:11]} 16. Rfd1 {[%emt 0:05:48]} Re8 {[%emt 0:18:40]} 17. bxc6 {[%emt 0:14:41]} bxc6 {[%emt 0:00:05]} 18. Qd6 {[%emt 0:01:02]} Qxd6 {[%emt 0:00:48]} 19. Rxd6 {[%emt 0:00:02]} Re6 {[%emt 0:00:46]} 20. Rbd1 {[%emt 0:01:27]} Rxd6 {[%emt 0:01:29]} 21. Rxd6 {[%emt 0:00:09]} Ne8 {[%emt 0:03:02]} 22. Rd1 {[%emt 0:05:39]} Bf8 {[%emt 0:05:59]} 23. Rb1 {[%emt 0:05:55]} Bc5 {[%emt 0:01:52]} 24. Bd2 {[%emt 0:03:36]} Nb6 {[%emt 0:01:07]} 25. Be3 {[%emt 0:01:54]} Bxe3 {[%emt 0:01:33]} 26. fxe3 {[%emt 0:00:01]} Ba6 {[%emt 0:05:22]} 27. c5 {[%emt 0:01:08]} Bxe2 {[%emt 0:00:35]} 28. cxb6 {[%emt 0:00:42]} Bd3 {[%emt 0:05:14]} 29. Rd1 {[%emt 0:01:23]} Bc4 {[%emt 0:01:36]} 30. bxa7 {[%emt 0:00:42]} Rxa7 {[%emt 0:00:10]} 31. Rd8 {[%emt 0:00:33]} Kf7 {[%emt 0:00:33]} 32. Nd2 {[%emt 0:00:29]} Be6 {[%emt 0:02:29]} 33. Rb8 {[%emt 0:01:20]} c5 {[%emt 0:01:24]} 34. Rb5 {[%emt 0:01:10]} Rc7 {[%emt 0:00:32]} 35. a4 {[%emt 0:01:09]} c4 {[%emt 0:00:36]} 36. a5 {[%emt 0:00:39]} Nd6 {[%emt 0:00:33]} 37. Rb4 {[%emt 0:00:25]} Ra7 {[%emt 0:00:23]} 38. Ra4 {[%emt 0:00:33]} Ra6 {[%emt 0:00:42]} 39. Kf2 {[%emt 0:00:36]} Ke7 {[%emt 0:00:27]} 40. Ke2 {[%emt 0:00:31]} Kd7 {[%emt 0:00:30]} 41. Nd5 {[%emt 0:00:00]} Bxd5 {[%emt 0:00:00]} 42. exd5 {[%emt 0:00:00]} f5 {[%emt 0:00:00]} 43. Nxc4 {[%emt 0:00:00]} Nxc4 {[%emt 0:00:00]} 44. Rxc4 {[%emt 0:00:00]} Rxa5 {[%emt 0:00:00]} 45. Rb4 {[%emt 0:00:00]} Kd6 {[%emt 0:00:00]} 46. Rb7 {[%emt 0:00:00]} h5 {[%emt 0:00:00]} 47. Rb6+ {[%emt 0:00:00]} Kxd5 {[%emt 0:00:00]} 48. Rxg6 {[%emt 0:00:27]} Ke4 {[%emt 0:00:00]} 49. Rd6 {[%emt 0:03:17]} Ra3 {[%emt 0:00:00]} 50. Rd2 {[%emt 0:00:41]} Rxe3+ {[%emt 0:00:00]} 51. Kf2 {[%emt 0:00:01]} Rd3 {[%emt 0:00:00]} 52. Re2+ {[%emt 0:00:12]} Kd4 {[%emt 0:00:00]} 53. Ra2 {[%emt 0:00:09]} Rc3 {[%emt 0:00:00]} 54. Rd2+ {[%emt 0:00:23]} Rd3 {[%emt 0:00:00]} 55. Ra2 {[%emt 0:00:06]} e4 {[%emt 0:00:53]} 56. Ra5 {[%emt 0:02:31]} f4 {[%emt 0:02:51]} 57. Rxh5 {[%emt 0:00:27]} Rd2+ {[%emt 0:00:31]} 58. Kf1 {[%emt 0:00:47]} Ke3 {[%emt 0:00:49]} 59. Rh3+ {[%emt 0:00:31]} f3 {[%emt 0:00:29]} 60. gxf3 exf3 {[%emt 0:00:13]} 61. Ke1 {[%emt 0:00:31]} Ra2 {[%emt 0:00:39]} 62. Kd1 {[%emt 0:00:16]} Ra1+ {[%emt 0:00:21]} 63. Kc2 {[%emt 0:00:10]} Ke2 {[%emt 0:00:18]} 64. Rh8 {[%emt 0:00:44]} f2 {[%emt 0:00:28]} 65. Re8+ {[%emt 0:00:04]} Kf3 {[%emt 0:00:18]} 66. Rf8+ {[%emt 0:00:05]} Kg2 {[%emt 0:00:11]} 67. Rg8+ {[%emt 0:00:07]} Kh1 {[%emt 0:00:12]} 0-1

[Event "CZE-ch U14 Girls 2020"]
[Site "Kouty nad Desnou"]
[Date "2020.03.07"]
[Round "1.4"]
[White "Petricek, Lukas"]
[Black "Prochazka, Vojtech"]
[Result "1-0"]
[ECO "B22"]
[WhiteElo "2106"]
[BlackElo "1763"]
[Annotator "ChessBase"]
[PlyCount "117"]
[EventDate "2020.03.07"]
[EventCountry "CZE"]
[SourceTitle "playchess.com"]
[Source "ChessBase"]
[SourceQuality "1"]
[TimeControl "5400+30"]

1. e4 {[%emt 0:00:00]} c5 {[%emt 0:00:00]} 2. c3 {[%emt 0:00:02]} d5 {[%emt 0:01:59]} 3. exd5 {[%emt 0:00:10]} Qxd5 {[%emt 0:00:06]} 4. d4 {[%emt 0:00:10]} cxd4 {[%emt 0:00:53]} 5. cxd4 {[%emt 0:00:10]} e5 {[%emt 0:03:45]} 6. Nf3 {[%emt 0:05:19]} exd4 {[%emt 0:03:27]} 7. Qxd4 {[%emt 0:03:07]} Nf6 {[%emt 0:05:30]} 8. Be3 {[%emt 0:06:08]} Nc6 {[%emt 0:10:26]} 9. Qxd5 {[%emt 0:20:46]} Nxd5 {[%emt 0:00:10]} 10. Bd2 {[%emt 0:00:37]} Bf5 {[%emt 0:17:20]} 11. a3 {[%emt 0:14:05]} O-O-O {[%emt 0:26:32]} 12. Bc4 {[%emt 0:11:14]} Re8+ {[%emt 0:06:20]} 13. Kf1 {[%emt 0:00:40]} Be6 14. Bd3 {[%emt 0:09:36]} h6 {[%emt 0:04:10]} 15. Nc3 {[%emt 0:02:19]} Nxc3 {[%emt 0:03:13]} 16. Bxc3 {[%emt 0:00:08]} Rd8 {[%emt 0:00:47]} 17. Be2 {[%emt 0:01:29]} f6 {[%emt 0:00:38]} 18. Rc1 {[%emt 0:00:32]} Kb8 {[%emt 0:00:29]} 19. b4 {[%emt 0:00:30]} Bd6 {[%emt 0:00:49]} 20. Bd2 {[%emt 0:11:53]} Rhe8 {[%emt 0:04:31]} 21. h4 {[%emt 0:02:52]} Rc8 {[%emt 0:02:43]} 22. Be3 {[%emt 0:00:59]} Ne5 {[%emt 0:00:57]} 23. Rd1 {[%emt 0:00:46]} Red8 {[%emt 0:00:41]} 24. Nd4 {[%emt 0:00:33]} Bc4 {[%emt 0:00:33]} 25. f4 {[%emt 0:01:40]} Bxe2+ {[%emt 0:00:49]} 26. Kxe2 {[%emt 0:00:10]} Nc4 {[%emt 0:00:17]} 27. Nb5 {[%emt 0:02:05]} Nxe3 {[%emt 0:01:36]} 28. Kxe3 {[%emt 0:01:30]} Bc7 {[%emt 0:01:50]} 29. Nxc7 {[%emt 0:00:28]} Kxc7 {[%emt 0:00:08]} 30. Ke4 {[%emt 0:02:27]} g6 {[%emt 0:01:32]} 31. Kf3 {[%emt 0:01:32]} Kb6 {[%emt 0:01:07]} 32. Rxd8 {[%emt 0:00:33]} Rxd8 {[%emt 0:00:05]} 33. Re1 {[%emt 0:00:13]} Rd3+ {[%emt 0:00:52]} 34. Re3 {[%emt 0:00:40]} Rxe3+ {[%emt 0:00:34]} 35. Kxe3 {[%emt 0:00:04]} Kb5 {[%emt 0:00:05]} 36. g4 {[%emt 0:00:13]} f5 {[%emt 0:00:40]} 37. gxf5 {[%emt 0:01:01]} gxf5 {[%emt 0:00:05]} 38. Kd4 {[%emt 0:00:03]} Ka4 {[%emt 0:00:10]} 39. Ke5 {[%emt 0:00:02]} Kxa3 {[%emt 0:00:07]} 40. Kxf5 {[%emt 0:00:03]} Kxb4 {[%emt 0:00:38]} 41. Ke4 {[%emt 0:01:06]} Kc5 {[%emt 0:00:36]} 42. Ke5 {[%emt 0:00:41]} Kc6 {[%emt 0:00:26]} 43. Ke6 {[%emt 0:01:25]} a5 {[%emt 0:00:27]} 44. f5 {[%emt 0:00:05]} a4 {[%emt 0:00:04]} 45. f6 {[%emt 0:00:03]} a3 {[%emt 0:00:07]} 46. f7 {[%emt 0:00:04]} a2 {[%emt 0:00:02]} 47. f8=Q {[%emt 0:00:04]} a1=Q {[%emt 0:00:06]} 48. Qxh6 {[%emt 0:01:26]} Qd4 {[%emt 0:01:44]} 49. Kf5+ {[%emt 0:00:37]} Kc5 {[%emt 0:03:11]} 50. Qc1+ {[%emt 0:01:14]} Kd6 {[%emt 0:00:00]} 51. Qh6+ {[%emt 0:00:00]} Kc5 {[%emt 0:00:00]} 52. Qf8+ {[%emt 0:00:00]} Kc4 {[%emt 0:00:00]} 53. Qg8+ {[%emt 0:00:00]} Kc3 {[%emt 0:00:00]} 54. Qg3+ {[%emt 0:00:00]} Kc4 {[%emt 0:00:00]} 55. Qg8+ {[%emt 0:00:00]} Kc3 {[%emt 0:00:00]} 56. Qg3+ {[%emt 0:00:00]} Kc4 {[%emt 0:00:36]} 57. h5 {[%emt 0:00:00]} b5 {[%emt 0:02:01]} 58. Qf4 {[%emt 0:00:00]} Qxf4+ {[%emt 0:01:57]} 59. Kxf4 {[%emt 0:00:00]} 1-0

[Event "CZE-ch U14 Girls 2020"]
[Site "Kouty nad Desnou"]
[Date "2020.03.07"]
[Round "1.5"]
[White "Vilimek, Vit"]
[Black "Babula, Vlastimil"]
[Result "0-1"]
[ECO "B20"]
[WhiteElo "1695"]
[BlackElo "2026"]
[Annotator "ChessBase"]
[PlyCount "70"]
[EventDate "2020.03.07"]
[EventCountry "CZE"]
[SourceTitle "playchess.com"]
[Source "ChessBase"]
[SourceQuality "1"]
[TimeControl "5400+30"]

1. e4 {[%emt 0:00:00]} c5 {[%emt 0:00:00]} 2. b4 {[%emt 0:00:00]} cxb4 {[%emt 0:00:08]} 3. a3 {[%emt 0:00:00]} e5 {[%emt 0:01:13]} 4. Nf3 {[%emt 0:00:00]} Nc6 {[%emt 0:04:32]} 5. Bb5 {[%emt 0:00:00]} Nf6 {[%emt 0:01:10]} 6. O-O {[%emt 0:00:03]} Be7 {[%emt 0:04:23]} 7. d4 {[%emt 0:00:24]} Nxe4 {[%emt 0:12:21]} 8. d5 {[%emt 0:09:36]} Nd6 {[%emt 0:05:01]} 9. dxc6 {[%emt 0:21:41]} Nxb5 {[%emt 0:00:08]} 10. a4 {[%emt 0:26:44]} Nd6 {[%emt 0:03:48]} 11. cxb7 {[%emt 0:14:20]} Bxb7 {[%emt 0:04:10]} 12. Nxe5 {[%emt 0:01:53]} Ne4 {[%emt 0:02:31]} 13. Qe2 {[%emt 0:12:27]} O-O {[%emt 0:05:05]} 14. Rd1 {[%emt 0:02:49]} d6 {[%emt 0:02:11]} 15. Nd3 {[%emt 0:03:37]} Bf6 {[%emt 0:03:21]} 16. Ra2 {[%emt 0:00:44]} Re8 {[%emt 0:01:49]} 17. Qg4 {[%emt 0:01:18]} a5 {[%emt 0:01:58]} 18. f3 {[%emt 0:02:11]} Qb6+ {[%emt 0:01:55]} 19. Kf1 {[%emt 0:00:24]} Bc8 {[%emt 0:00:58]} 20. Qxe4 {[%emt 0:01:06]} Rxe4 {[%emt 0:00:14]} 21. fxe4 {[%emt 0:00:04]} Be6 {[%emt 0:00:54]} 22. Rb2 {[%emt 0:01:04]} Qc6 {[%emt 0:00:37]} 23. e5 {[%emt 0:00:26]} dxe5 {[%emt 0:00:24]} 24. c3 {[%emt 0:00:31]} e4 {[%emt 0:00:28]} 25. Nf4 {[%emt 0:00:36]} bxc3 {[%emt 0:00:59]} 26. Rc2 {[%emt 0:00:30]} Bb3 {[%emt 0:00:30]} 27. Na3 {[%emt 0:00:04]} Bxc2 {[%emt 0:00:11]} 28. Nxc2 {[%emt 0:00:03]} Qxa4 {[%emt 0:00:45]} 29. Ne3 {[%emt 0:00:06]} Rd8 {[%emt 0:00:52]} 30. Rxd8+ {[%emt 0:00:21]} Bxd8 {[%emt 0:00:05]} 31. Ne2 {[%emt 0:01:01]} Qb3 {[%emt 0:00:54]} 32. Ke1 {[%emt 0:00:59]} Bb6 {[%emt 0:00:27]} 33. Nd1 a4 {[%emt 0:00:34]} 34. Ndxc3 {[%emt 0:01:20]} Ba5 {[%emt 0:00:22]} 35. Kd2 {[%emt 0:00:36]} a3 {[%emt 0:00:34]} 0-1

[Event "CZE-ch U14 Girls 2020"]
[Site "Kouty nad Desnou"]
[Date "2020.03.07"]
[Round "1.6"]
[White "Smolik, Jachym"]
[Black "Mohapl, Tomas"]
[Result "1-0"]
[ECO "D10"]
[WhiteElo "2025"]
[BlackElo "1654"]
[Annotator "ChessBase"]
[PlyCount "71"]
[EventDate "2020.03.07"]
[EventCountry "CZE"]
[SourceTitle "playchess.com"]
[Source "ChessBase"]
[SourceQuality "1"]
[TimeControl "5400+30"]

1. d4 {[%emt 0:00:00]} d5 {[%emt 0:00:00]} 2. c4 {[%emt 0:00:00]} c6 {[%emt 0:00:00]} 3. cxd5 {[%emt 0:00:00]} cxd5 {[%emt 0:00:09]} 4. Nc3 {[%emt 0:00:00]} Nf6 {[%emt 0:00:43]} 5. Bf4 {[%emt 0:00:00]} Nc6 {[%emt 0:03:43]} 6. e3 {[%emt 0:00:09]} a6 {[%emt 0:01:49]} 7. Rc1 {[%emt 0:06:41]} Qb6 {[%emt 0:16:25]} 8. Qd2 {[%emt 0:06:22]} Bf5 {[%emt 0:05:12]} 9. Na4 {[%emt 0:02:36]} Qd8 {[%emt 0:01:16]} 10. Nc5 {[%emt 0:17:06]} Ne4 {[%emt 0:06:33]} 11. Nxe4 {[%emt 0:00:23]} Bxe4 {[%emt 0:00:40]} 12. Ne2 {[%emt 0:09:25]} e6 {[%emt 0:08:38]} 13. f3 {[%emt 0:03:33]} Bg6 {[%emt 0:01:39]} 14. h4 {[%emt 0:04:09]} h5 {[%emt 0:03:15]} 15. Kf2 {[%emt 0:01:44]} Be7 {[%emt 0:04:03]} 16. Bg3 {[%emt 0:01:26]} Bf6 {[%emt 0:07:33]} 17. Nf4 {[%emt 0:03:52]} Bf5 {[%emt 0:01:26]} 18. b4 {[%emt 0:14:08]} Qb6 {[%emt 0:09:33]} 19. a3 {[%emt 0:00:40]} a5 {[%emt 0:05:57]} 20. b5 {[%emt 0:13:24]} Ne7 {[%emt 0:04:12]} 21. Ng6 {[%emt 0:03:52]} Rc8 {[%emt 0:08:54]} 22. Nxh8 {[%emt 0:00:43]} g6 {[%emt 0:01:28]} 23. Rxc8+ {[%emt 0:01:06]} Nxc8 {[%emt 0:00:49]} 24. Qc3 {[%emt 0:00:09]} Qd8 {[%emt 0:02:31]} 25. Nxf7 {[%emt 0:01:12]} Kxf7 {[%emt 0:00:15]} 26. Bc7 {[%emt 0:00:22]} Qd7 {[%emt 0:01:04]} 27. Bxa5 {[%emt 0:00:09]} b6 {[%emt 0:01:48]} 28. Bb4 {[%emt 0:00:08]} Na7 {[%emt 0:00:43]} 29. a4 {[%emt 0:00:14]} Bd8 {[%emt 0:02:21]} 30. Be2 {[%emt 0:00:42]} Kg8 {[%emt 0:00:40]} 31. g3 {[%emt 0:00:25]} Kh7 {[%emt 0:01:27]} 32. Rc1 {[%emt 0:00:07]} Kg8 {[%emt 0:00:10]} 33. a5 {[%emt 0:01:34]} Nxb5 {[%emt 0:00:32]} 34. Qc8 {[%emt 0:00:42]} e5 {[%emt 0:00:33]} 35. Qxd7 {[%emt 0:00:11]} Bxd7 {[%emt 0:00:05]} 36. Bxb5 {[%emt 0:00:04]} 1-0

[Event "CZE-ch U14 Girls 2020"]
[Site "Kouty nad Desnou"]
[Date "2020.03.07"]
[Round "1.7"]
[White "Licka, Denis"]
[Black "Paseka, Matyas"]
[Result "0-1"]
[ECO "B90"]
[WhiteElo "1594"]
[BlackElo "2012"]
[Annotator "ChessBase"]
[PlyCount "62"]
[EventDate "2020.03.07"]
[EventCountry "CZE"]
[SourceTitle "playchess.com"]
[Source "ChessBase"]
[SourceQuality "1"]
[TimeControl "5400+30"]

1. e4 {[%emt 0:00:00]} c5 {[%emt 0:00:00]} 2. Nf3 {[%emt 0:00:00]} d6 {[%emt 0:00:00]} 3. d4 {[%emt 0:00:00]} cxd4 {[%emt 0:00:00]} 4. Nxd4 {[%emt 0:00:00]} Nf6 {[%emt 0:00:03]} 5. Nc3 {[%emt 0:00:00]} a6 {[%emt 0:00:08]} 6. Be3 {[%emt 0:00:02]} e5 {[%emt 0:00:08]} 7. Nb3 {[%emt 0:00:06]} Be6 {[%emt 0:00:09]} 8. f3 {[%emt 0:00:18]} h5 {[%emt 0:00:15]} 9. Qd2 {[%emt 0:00:08]} Nbd7 {[%emt 0:00:14]} 10. O-O-O {[%emt 0:00:15]} Rc8 {[%emt 0:00:08]} 11. Kb1 {[%emt 0:00:20]} b5 {[%emt 0:00:17]} 12. Nd5 {[%emt 0:00:39]} Bxd5 {[%emt 0:00:12]} 13. exd5 {[%emt 0:00:09]} Nb6 {[%emt 0:00:07]} 14. Bxb6 {[%emt 0:07:06]} Qxb6 {[%emt 0:00:28]} 15. Bd3 {[%emt 0:03:21]} g6 {[%emt 0:00:57]} 16. Be4 {[%emt 0:04:55]} Bh6 {[%emt 0:00:51]} 17. Qe1 {[%emt 0:11:31]} b4 {[%emt 0:17:38]} 18. Qh4 {[%emt 0:31:01]} Nxe4 {[%emt 0:18:33]} 19. fxe4 {[%emt 0:01:14]} Qc7 {[%emt 0:02:20]} 20. Qf2 {[%emt 0:07:03]} O-O {[%emt 0:04:51]} 21. Rhg1 {[%emt 0:06:21]} a5 {[%emt 0:17:22]} 22. g4 {[%emt 0:03:22]} a4 {[%emt 0:00:21]} 23. Nc1 {[%emt 0:00:36]} hxg4 {[%emt 0:01:24]} 24. Nd3 {[%emt 0:03:31]} b3 {[%emt 0:06:58]} 25. cxb3 {[%emt 0:09:07]} axb3 {[%emt 0:00:09]} 26. Rg2 {[%emt 0:00:31]} Qa5 {[%emt 0:05:27]} 27. a3 {[%emt 0:02:50]} Rc2 {[%emt 0:01:02]} 28. Qf1 {[%emt 0:01:21]} Rfc8 {[%emt 0:00:30]} 29. Rxg4 {[%emt 0:04:37]} Qb5 {[%emt 0:04:09]} 30. Qg1 {[%emt 0:04:05]} Kg7 {[%emt 0:04:14]} 31. Qa7 {[%emt 0:00:29]} Qxd3 {[%emt 0:02:29]} 0-1

[Event "CZE-ch U14 Girls 2020"]
[Site "Kouty nad Desnou"]
[Date "2020.03.07"]
[Round "1.8"]
[White "Janous, Marek"]
[Black "Richter, Rudolf"]
[Result "1-0"]
[ECO "B05"]
[WhiteElo "1990"]
[BlackElo "1555"]
[Annotator "ChessBase"]
[PlyCount "101"]
[EventDate "2020.03.07"]
[EventCountry "CZE"]
[SourceTitle "playchess.com"]
[Source "ChessBase"]
[SourceQuality "1"]
[TimeControl "5400+30"]

1. e4 {[%emt 0:00:00]} Nf6 {[%emt 0:00:04]} 2. e5 {[%emt 0:00:00]} Nd5 {[%emt 0:00:19]} 3. d4 {[%emt 0:00:00]} d6 {[%emt 0:00:35]} 4. Nf3 {[%emt 0:00:18]} Bg4 {[%emt 0:05:26]} 5. Be2 {[%emt 0:00:37]} Nc6 {[%emt 0:02:05]} 6. O-O {[%emt 0:03:18]} g6 {[%emt 0:03:58]} 7. h3 {[%emt 0:05:31]} Bxf3 {[%emt 0:07:05]} 8. Bxf3 {[%emt 0:00:57]} Nb6 {[%emt 0:00:46]} 9. exd6 {[%emt 0:05:45]} cxd6 {[%emt 0:02:06]} 10. Re1 {[%emt 0:01:42]} Bg7 {[%emt 0:02:40]} 11. Bg5 {[%emt 0:10:51]} f6 {[%emt 0:09:18]} 12. Bh4 {[%emt 0:00:38]} O-O {[%emt 0:06:23]} 13. c3 {[%emt 0:00:58]} d5 {[%emt 0:11:26]} 14. Nd2 {[%emt 0:08:20]} Qd7 {[%emt 0:16:23]} 15. Nb3 {[%emt 0:00:53]} e5 {[%emt 0:08:39]} 16. Nc5 {[%emt 0:18:04]} Qf7 {[%emt 0:03:55]} 17. dxe5 {[%emt 0:02:31]} Nxe5 {[%emt 0:04:13]} 18. a4 {[%emt 0:03:30]} Rac8 {[%emt 0:05:25]} 19. Nd3 {[%emt 0:02:19]} Nxf3+ {[%emt 0:00:59]} 20. Qxf3 {[%emt 0:00:48]} Nc4 {[%emt 0:00:46]} 21. Bg3 {[%emt 0:03:23]} Rfe8 {[%emt 0:01:55]} 22. Rxe8+ {[%emt 0:17:35]} Rxe8 {[%emt 0:01:14]} 23. Rd1 {[%emt 0:01:14]} Rd8 {[%emt 0:01:03]} 24. b3 {[%emt 0:01:46]} Ne5 {[%emt 0:00:55]} 25. Qe3 {[%emt 0:00:10]} Nxd3 {[%emt 0:00:19]} 26. Qxd3 {[%emt 0:01:49]} f5 {[%emt 0:00:22]} 27. Bf4 {[%emt 0:00:52]} Qf6 {[%emt 0:03:05]} 28. c4 {[%emt 0:01:49]} d4 {[%emt 0:00:42]} 29. c5 {[%emt 0:01:34]} Qc6 {[%emt 0:01:11]} 30. Qc4+ {[%emt 0:02:54]} Qd5 {[%emt 0:00:18]} 31. Qxd5+ {[%emt 0:01:58]} Rxd5 {[%emt 0:00:06]} 32. Bd6 {[%emt 0:01:30]} Bf8 {[%emt 0:00:46]} 33. Bxf8 {[%emt 0:00:09]} Kxf8 {[%emt 0:00:04]} 34. b4 {[%emt 0:00:04]} Ke8 {[%emt 0:00:44]} 35. Kf1 {[%emt 0:00:05]} Ke7 {[%emt 0:01:06]} 36. Ke2 {[%emt 0:00:09]} Kf6 {[%emt 0:00:41]} 37. Kd3 {[%emt 0:00:13]} Rd8 {[%emt 0:00:29]} 38. b5 {[%emt 0:00:31]} Ke6 {[%emt 0:00:45]} 39. Kc4 {[%emt 0:00:26]} Ke5 {[%emt 0:00:24]} 40. Rd3 {[%emt 0:01:58]} Ke4 {[%emt 0:00:29]} 41. f3+ {[%emt 0:00:12]} Ke5 {[%emt 0:00:15]} 42. g3 {[%emt 0:00:32]} g5 {[%emt 0:00:14]} 43. a5 {[%emt 0:01:23]} h5 {[%emt 0:00:40]} 44. Rd1 {[%emt 0:01:49]} Rd7 {[%emt 0:00:41]} 45. Re1+ {[%emt 0:00:50]} Kf6 {[%emt 0:00:00]} 46. c6 {[%emt 0:00:00]} bxc6 {[%emt 0:00:00]} 47. bxc6 {[%emt 0:00:00]} Rd8 {[%emt 0:00:00]} 48. Kc5 {[%emt 0:00:00]} d3 {[%emt 0:00:00]} 49. c7 {[%emt 0:00:00]} Rc8 {[%emt 0:00:00]} 50. Kc6 {[%emt 0:00:00]} d2 {[%emt 0:00:00]} 51. Rd1 {[%emt 0:00:00]} 1-0

[Event "CZE-ch U14 Girls 2020"]
[Site "Kouty nad Desnou"]
[Date "2020.03.07"]
[Round "1.9"]
[White "Mrazek, Roman"]
[Black "Hlavina, Matous"]
[Result "1-0"]
[ECO "A45"]
[WhiteElo "1545"]
[BlackElo "1986"]
[Annotator "ChessBase"]
[PlyCount "73"]
[EventDate "2020.03.07"]
[EventCountry "CZE"]
[SourceTitle "playchess.com"]
[Source "ChessBase"]
[SourceQuality "1"]
[TimeControl "5400+30"]

1. d4 {[%emt 0:00:00]} Nf6 {[%emt 0:00:00]} 2. Bf4 {[%emt 0:00:00]} g6 {[%emt 0:00:00]} 3. e3 {[%emt 0:00:15]} Bg7 {[%emt 0:00:21]} 4. h3 {[%emt 0:02:25]} d6 {[%emt 0:01:35]} 5. Nf3 {[%emt 0:00:37]} c5 {[%emt 0:01:06]} 6. c3 {[%emt 0:01:03]} Qb6 {[%emt 0:04:52]} 7. Qb3 {[%emt 0:03:28]} Qc7 {[%emt 0:02:38]} 8. Nbd2 {[%emt 0:04:53]} O-O {[%emt 0:02:30]} 9. Bd3 {[%emt 0:03:54]} Be6 {[%emt 0:04:35]} 10. Qd1 {[%emt 0:03:56]} Nd5 {[%emt 0:11:52]} 11. Bh2 {[%emt 0:02:27]} cxd4 {[%emt 0:04:03]} 12. exd4 {[%emt 0:02:50]} a6 {[%emt 0:01:22]} 13. O-O {[%emt 0:10:29]} Qc8 {[%emt 0:07:10]} 14. Re1 {[%emt 0:04:22]} Nc6 {[%emt 0:06:21]} 15. Qe2 {[%emt 0:05:54]} Bf5 {[%emt 0:02:02]} 16. Ne4 {[%emt 0:05:12]} h5 {[%emt 0:08:14]} 17. Rad1 {[%emt 0:05:39]} b5 {[%emt 0:02:57]} 18. Bb1 {[%emt 0:08:41]} Na5 {[%emt 0:02:22]} 19. Nh4 {[%emt 0:05:03]} Bd7 {[%emt 0:03:09]} 20. Ng5 {[%emt 0:05:06]} Bh6 {[%emt 0:09:53]} 21. Nxf7 {[%emt 0:06:25]} Kxf7 {[%emt 0:02:11]} 22. Bxg6+ {[%emt 0:00:55]} Kg7 {[%emt 0:01:45]} 23. Qxh5 {[%emt 0:02:08]} e6 {[%emt 0:02:25]} 24. Bxd6 {[%emt 0:03:02]} Nc4 {[%emt 0:01:39]} 25. Bxf8+ {[%emt 0:00:39]} Qxf8 {[%emt 0:00:04]} 26. Be4 {[%emt 0:01:20]} Be8 {[%emt 0:01:04]} 27. Qg4+ {[%emt 0:00:19]} Kh8 {[%emt 0:00:34]} 28. Qxe6 {[%emt 0:02:54]} Bf7 {[%emt 0:00:43]} 29. Qf5 {[%emt 0:00:25]} Qg7 {[%emt 0:00:51]} 30. Bxd5 {[%emt 0:01:03]} Bxd5 {[%emt 0:00:27]} 31. Qxd5 {[%emt 0:00:17]} Rg8 {[%emt 0:00:10]} 32. Nf5 {[%emt 0:01:20]} Qg5 {[%emt 0:00:12]} 33. Ne3 {[%emt 0:01:20]} Qg7 {[%emt 0:01:06]} 34. Nxc4 {[%emt 0:00:09]} bxc4 {[%emt 0:00:05]} 35. Qe5 {[%emt 0:00:03]} Bf4 {[%emt 0:00:45]} 36. Qxg7+ {[%emt 0:00:09]} Rxg7 {[%emt 0:00:11]} 37. d5 {[%emt 0:00:13]} 1-0